bitfinex/quotes_SOLUSD_20250602
["timestamp","ask_amount","ask_price","bid_price","bid_amount"]
[1748871864547,38.33785921,153.57,153.54,54.32]
[1748871864873,38.33785921,153.57,153.56,26.0]
[1748871865255,38.33785921,153.58,153.56,26.0]
[1748871865875,38.33785921,153.61,153.57,64.33785921]
[1748871866174,44.84732613,153.63,153.58,26.0]
[1748871866376,38.33785921,153.59,153.58,26.0]
[1748871868184,44.84907864,153.59,153.54,54.32]
[1748871868347,38.33785921,153.55,153.54,37.86]
[1748871868547,38.33785921,153.55,153.54,11.86]
[1748871868795,38.33785921,153.55,153.49,11.86]
[1748871869084,22.7883208,153.59,153.49,11.86]
[1748871869085,38.33785921,153.5,153.49,37.86]
[1748871869386,38.33785921,153.53,153.51,26.0]
[1748871869697,38.33785921,153.53,153.49,99.13286849]
[1748871869985,38.33785921,153.53,153.5,26.0]
[1748871870405,38.33785921,153.51,153.49,6.51500928]
[1748871870593,38.33785921,153.5,153.39,55.51374475]
[1748871870799,38.33785921,153.47,153.44,26.0]
[1748871871106,38.33785921,153.46,153.44,26.0]
[1748871872273,38.33785921,153.46,153.42,44.8558048]
[1748871873199,38.33785921,153.46,153.45,26.0]
[1748871873773,38.33785921,153.47,153.45,26.0]
[1748871874100,38.33785921,153.46,153.45,26.0]
[1748871874525,38.33785921,153.46,153.43,26.0]
[1748871874812,38.33785921,153.45,153.43,26.0]
[1748871875112,38.33785921,153.46,153.45,26.0]
[1748871875892,38.33785921,153.47,153.45,26.0]
[1748871876389,6.51472004,153.5,153.46,26.0]
[1748871876593,38.33785921,153.48,153.44,44.85505787]
[1748871876814,6.51472004,153.5,153.41,42.4]
[1748871876815,38.33785921,153.47,153.46,26.0]
[1748871877019,38.33785921,153.47,153.43,6.51747808]
[1748871877194,38.33785921,153.46,153.44,26.0]
[1748871877942,16.28468465,153.52,153.46,26.0]
[1748871877943,6.5142336,153.51,153.46,26.0]
[1748871878086,38.33785921,153.47,153.46,26.0]
[1748871878286,6.5139404,153.52,153.46,26.0]
[1748871878892,38.33785921,153.49,153.46,26.0]
[1748871879592,38.33785921,153.5,153.48,26.0]
[1748871880004,38.33785921,153.51,153.49,26.0]
[1748871880500,6.51253663,153.55,153.49,26.0]
[1748871880709,38.33785921,153.51,153.5,26.0]
[1748871881624,38.33785921,153.51,153.48,26.0]
[1748871881846,38.33785921,153.49,153.48,26.0]
[1748871882442,38.33785921,153.49,153.45,11.86]
[1748871882738,6.51380927,153.52,153.46,26.0]
[1748871883822,38.33785921,153.47,153.46,26.0]
[1748871889513,44.85379066,153.47,153.45,11.86]
[1748871889710,38.33785921,153.46,153.45,11.86]
[1748871891232,58.68581107,153.51,153.45,11.86]
[1748871891233,38.33785921,153.47,153.45,11.86]
[1748871891638,38.33785921,153.47,153.45,18.37674795]
[1748871891944,38.33785921,153.47,153.46,42.4]
[1748871892817,24.08939218,153.53,153.46,42.4]
[1748871892818,10.21552387,153.52,153.47,26.0]
[1748871893031,38.33785921,153.49,153.48,26.0]
[1748871893536,38.33785921,153.5,153.48,26.0]
[1748871893734,6.51398684,153.52,153.48,26.0]
[1748871893930,11.50743703,153.53,153.48,26.0]
[1748871893931,38.33785921,153.5,153.48,26.0]
[1748871894130,38.33785921,153.51,153.48,26.0]
[1748871895129,38.33785921,153.51,153.49,42.4]
[1748871896051,3.70153703,153.52,153.49,42.4]
[1748871896355,14.31943159,153.53,153.49,42.4]
[1748871896356,38.33785921,153.51,153.49,42.4]
[1748871896879,38.33785921,153.5,153.48,26.0]
[1748871897087,3.70153703,153.52,153.49,125.38750807]
[1748871897246,48.55241294,153.54,153.5,42.4]
[1748871897587,38.33785921,153.51,153.48,26.0]
[1748871897873,38.33785921,153.49,153.48,26.0]
[1748871898239,38.33785921,153.49,153.46,26.0]
[1748871898447,38.33785921,153.47,153.46,26.0]
[1748871898839,38.33785921,153.48,153.46,26.0]
[1748871899468,3.71856636,153.52,153.46,26.0]
[1748871899649,3.71856636,153.51,153.5,26.0]
[1748871899850,42.05723997,153.55,153.5,125.38750807]
[1748871900053,3.71938076,153.54,153.51,38.33785921]
[1748871900265,3.71938076,153.54,153.53,26.0]
[1748871900471,3.71938076,153.54,153.53,106.73785921]
[1748871900666,38.33785921,153.54,153.53,68.4]
[1748871900873,11.77601543,153.59,153.53,68.4]
[1748871900874,38.33785921,153.56,153.53,68.4]
[1748871901058,38.33785921,153.55,153.53,68.4]
[1748871901665,38.33785921,153.56,153.53,68.4]
[1748871902169,38.33785921,153.55,153.53,68.4]
[1748871902475,38.33785921,153.54,153.53,68.4]
[1748871902857,38.33785921,153.55,153.53,68.4]
[1748871903457,38.33785921,153.55,153.53,26.0]
[1748871903981,38.33785921,153.54,153.53,26.0]
[1748871904198,16.42629035,153.59,153.53,26.0]
[1748871904199,10.23223406,153.57,153.53,26.0]
[1748871904488,15.49623537,153.59,153.56,64.33785921]
[1748871904652,11.77601543,153.59,153.56,64.33785921]
[1748871904854,50.11387464,153.59,153.56,26.0]
[1748871905262,38.33785921,153.58,153.56,26.0]
[1748871905463,38.33785921,153.57,153.56,26.0]
[1748871905977,38.33785921,153.57,153.55,42.38]
[1748871906276,38.33785921,153.56,153.55,42.38]
[1748871906481,18.28698934,153.59,153.55,42.38]
[1748871906482,38.33785921,153.57,153.55,42.38]
[1748871906778,38.33785921,153.56,153.55,26.0]
[1748871906951,38.33785921,153.57,153.55,26.0]
[1748871907353,38.33785921,153.56,153.55,26.0]
[1748871908080,6.51151914,153.58,153.55,26.0]
[1748871908275,38.33785921,153.57,153.55,26.0]
[1748871908470,3.7191604,153.61,153.56,80.71785921]
[1748871908775,3.7191604,153.62,153.56,80.71785921]
[1748871908963,38.33785921,153.58,153.56,42.38]
[1748871909164,38.33785921,153.57,153.55,26.0]
[1748871909483,38.33785921,153.56,153.55,26.0]
[1748871909686,38.33785921,153.56,153.53,26.0]
[1748871909983,38.33785921,153.54,153.51,26.0]
[1748871910172,38.33785921,153.52,153.51,26.0]
[1748871910363,10.23084888,153.57,153.51,26.0]
[1748871910686,38.33785921,153.52,153.48,6.5155069]
[1748871910981,38.33785921,153.51,153.5,26.0]
[1748871911187,38.33785921,153.51,153.46,11.82]
[1748871911371,38.33785921,153.48,153.46,11.82]
[1748871911889,38.33785921,153.54,153.46,56.67412005]
[1748871911890,3.72402181,153.52,153.46,56.67412005]
[1748871912057,3.72402181,153.54,153.48,38.33785921]
[1748871912394,38.33785921,153.51,153.48,42.38]
[1748871912560,38.33785921,153.51,153.48,68.38]
[1748871913465,38.33785921,153.49,153.48,68.38]
[1748871914004,46.39185792,153.49,153.4,1.12046534]
[1748871914160,38.33785921,153.41,153.4,1.12046534]
[1748871914658,38.33785921,153.43,153.4,33.63937016]
[1748871914854,3.72402181,153.48,153.43,26.0]
[1748871915075,42.06188102,153.47,153.43,26.0]
[1748871915299,38.33785921,153.47,153.43,26.0]
[1748871915587,11.78150357,153.49,153.43,26.0]
[1748871915588,38.33785921,153.46,153.43,26.0]
[1748871915781,11.78150357,153.49,153.43,26.0]
[1748871915782,38.33785921,153.44,153.43,26.0]
[1748871916567,38.33785921,153.44,153.4,43.50046534]
[1748871916774,38.33785921,153.42,153.4,43.50046534]
[1748871916983,38.33785921,153.41,153.4,27.12046534]
[1748871917161,38.33785921,153.41,153.4,1.12046534]
[1748871917582,38.33785921,153.41,153.4,27.12046534]
[1748871917962,38.33785921,153.41,153.38,11.82]
[1748871918163,38.33785921,153.39,153.35,6.52073887]
[1748871918390,38.33785921,153.39,153.38,26.0]
[1748871919290,38.33785921,153.4,153.38,26.0]
[1748871920596,38.33785921,153.39,153.38,26.0]
[1748871920972,38.33785921,153.39,153.36,26.0]
[1748871921172,38.33785921,153.39,153.37,26.0]
[1748871921373,38.33785921,153.41,153.37,64.33785921]
[1748871921576,38.33785921,153.4,153.37,26.0]
[1748871921799,38.33785921,153.39,153.37,26.0]
[1748871921968,6.51853465,153.41,153.36,26.0]
[1748871921969,38.33785921,153.38,153.36,26.0]
[1748871922163,38.33785921,153.37,153.33,11.82]
[1748871922373,38.33785921,153.34,153.33,11.82]
[1748871922592,38.33785921,153.34,153.3,6.52305158]
[1748871922904,38.33785921,153.31,153.28,11.82]
[1748871923072,6.0292,153.35,153.28,11.82]
[1748871923073,38.33785921,153.29,153.28,11.82]
[1748871923270,38.33785921,153.29,153.28,26.0]
[1748871923775,10.68858108,153.39,153.28,70.86169039]
[1748871923975,10.68858108,153.39,153.29,38.33785921]
[1748871923976,38.33785921,153.33,153.29,38.33785921]
[1748871924293,38.33785921,153.33,153.3,42.38]
[1748871924470,38.33785921,153.32,153.3,42.38]
[1748871924866,38.33785921,153.31,153.3,42.38]
[1748871925066,38.33785921,153.31,153.29,26.0]
[1748871925375,38.33785921,153.33,153.3,6.5231572]
[1748871925579,38.33785921,153.36,153.32,38.33785921]
[1748871926194,6.0292,153.39,153.34,26.0]
[1748871926195,38.33785921,153.37,153.34,26.0]
[1748871926390,38.33785921,153.37,153.35,26.0]
[1748871926573,38.33785921,153.36,153.35,26.0]
[1748871927168,38.33785921,153.36,153.34,26.0]
[1748871927369,38.33785921,153.35,153.32,26.0]
[1748871927694,38.33785921,153.33,153.29,18.34345957]
[1748871927868,38.33785921,153.32,153.29,18.34345957]
[1748871928072,6.51975485,153.38,153.29,82.68131878]
[1748871928380,16.25267796,153.39,153.33,26.0]
[1748871928586,38.33785921,153.36,153.33,26.0]
[1748871929083,38.33785921,153.35,153.33,26.0]
[1748871929280,38.33785921,153.34,153.31,26.0]
[1748871929490,6.52069878,153.36,153.31,26.0]
[1748871929666,38.33785921,153.33,153.32,26.0]
[1748871930112,38.33785921,153.33,153.3,26.0]
[1748871930280,38.33785921,153.31,153.3,26.0]
[1748871930590,38.33785921,153.31,153.26,87.2626617]
[1748871930791,38.33785921,153.33,153.28,64.33785921]
[1748871930981,11.82,153.37,153.31,26.0]
[1748871931175,38.33785921,153.36,153.32,38.33785921]
[1748871931375,38.33785921,153.35,153.32,32.521939]
[1748871932993,9.7331963,153.39,153.32,70.85979821]
[1748871933182,38.33785921,153.36,153.32,70.85979821]
[1748871933692,38.33785921,153.36,153.32,32.521939]
[1748871933897,38.33785921,153.36,153.32,70.85979821]
[1748871934301,38.33785921,153.36,153.32,32.521939]
[1748871934998,38.33785921,153.34,153.32,26.0]
[1748871935500,38.33785921,153.33,153.32,26.0]
[1748871936472,38.33785921,153.34,153.32,26.0]
[1748871937001,38.33785921,153.33,153.32,26.0]
[1748871938704,38.33785921,153.33,153.3,37.82]
[1748871938886,38.33785921,153.32,153.3,26.0]
[1748871939085,38.33785921,153.31,153.3,26.0]
[1748871939608,38.33785921,153.31,153.27,6.52425768]
[1748871939784,38.33785921,153.3,153.29,26.0]
[1748871939985,26.03224722,153.39,153.29,64.33785921]
[1748871940285,38.33785921,153.34,153.3,80.73785921]
[1748871940477,38.33785921,153.33,153.3,42.4]
[1748871940995,38.33785921,153.33,153.3,48.92297546]
[1748871941195,6.52090148,153.36,153.3,48.92297546]
[1748871941390,38.33785921,153.32,153.3,48.92297546]
[1748871941588,9.7331963,153.39,153.3,48.92297546]
[1748871941792,38.33785921,153.35,153.33,26.0]
[1748871942477,38.33785921,153.34,153.33,26.0]
[1748871942674,38.33785921,153.34,153.31,26.0]
[1748871942889,32.55099557,153.39,153.31,26.0]
[1748871942890,38.33785921,153.32,153.31,26.0]
[1748871943305,38.33785921,153.32,153.27,42.4]
[1748871943614,38.33785921,153.29,153.27,42.4]
[1748871944701,38.33785921,153.31,153.3,26.0]
[1748871944892,42.4,153.37,153.3,26.0]
[1748871945091,16.25262359,153.39,153.33,26.0]
[1748871945279,38.33785921,153.35,153.33,26.0]
[1748871945498,16.25262359,153.39,153.34,26.0]
[1748871945706,38.33785921,153.36,153.34,26.0]
[1748871945891,9.7331963,153.39,153.34,64.33785921]
[1748871946200,42.04185551,153.39,153.35,26.0]
[1748871946382,38.33785921,153.38,153.35,26.0]
[1748871947699,3.7039963,153.39,153.35,70.85879923]
[1748871947914,42.04185551,153.39,153.35,70.85879923]
[1748871948090,42.04185551,153.39,153.35,74.92094002]
[1748871948286,42.04185551,153.39,153.35,113.25879923]
[1748871948795,42.04185551,153.39,153.35,74.92094002]
[1748871949518,38.33785921,153.38,153.35,68.4]
[1748871949705,38.33785921,153.37,153.33,38.33785921]
[1748871949891,38.33785921,153.37,153.36,26.0]
[1748871950087,38.33785921,153.38,153.36,26.0]
[1748871950401,42.04185551,153.39,153.36,26.0]
[1748871950606,38.33785921,153.38,153.36,26.0]
[1748871951313,6.51993336,153.38,153.36,26.0]
[1748871951527,3.7039963,153.39,153.38,26.0]
[1748871951693,3.7039963,153.39,153.38,38.33785921]
[1748871952024,3.7039963,153.39,153.38,63.32540807]
[1748871952391,3.7039963,153.39,153.38,24.98754886]
[1748871952597,3.7039963,153.39,153.38,44.67575921]
[1748871952897,3.7039963,153.39,153.38,38.33785921]
[1748871953100,3.7039963,153.39,153.37,44.32006676]
[1748871953325,42.04185551,153.39,153.38,26.0]
[1748871953501,42.04185551,153.39,153.37,54.2]
[1748871953699,3.7039963,153.39,153.38,64.33785921]
[1748871954533,3.7039963,153.39,153.38,26.0]
[1748871955102,3.7039963,153.39,153.38,32.51975485]
[1748871955425,3.7039963,153.39,153.38,44.85761406]
[1748871955633,3.7039963,153.39,153.37,56.65788283]
[1748871957614,3.7039963,153.39,153.38,64.33785921]
[1748871959119,3.7039963,153.39,153.38,82.98750807]
[1748871959338,3.7039963,153.39,153.38,89.50726292]
[1748871960336,3.7039963,153.39,153.38,70.85761406]
[1748871961240,3.7039963,153.39,153.38,113.23761406]
[1748871961618,3.7039963,153.39,153.38,26.0]
[1748871961826,3.7039963,153.39,153.38,68.38]
[1748871962028,3.7039963,153.39,153.37,18.32005006]
[1748871962029,3.7039963,153.39,153.37,11.8]
[1748871962218,3.7039963,153.39,153.38,64.33785921]
[1748871962418,3.7039963,153.39,153.38,26.0]
[1748871962845,42.04185551,153.39,153.38,26.0]
[1748871963330,3.7039963,153.39,153.38,26.0]
[1748871963520,3.7039963,153.39,153.38,38.33785921]
[1748871963722,3.7039963,153.39,153.38,44.85761406]
[1748871964038,3.7039963,153.39,153.37,60.7001106]
[1748871964267,3.7039963,153.39,153.38,38.33785921]
[1748871964633,42.04185551,153.39,153.33,6.6033]
[1748871964842,42.04185551,153.39,153.32,44.86016549]
[1748871964843,38.33785921,153.37,153.32,44.86016549]
[1748871965020,38.33785921,153.36,153.33,42.38]
[1748871965220,3.7039963,153.39,153.35,26.0]
[1748871965531,42.04185551,153.39,153.37,26.0]
[1748871965731,38.33785921,153.38,153.37,26.0]
[1748871965929,38.33785921,153.38,153.35,42.38]
[1748871966128,38.33785921,153.38,153.37,26.0]
[1748871966625,38.33785921,153.38,153.35,42.38]
[1748871966824,38.33785921,153.38,153.37,26.0]
[1748871967523,44.85761406,153.38,153.36,26.0]
[1748871967735,44.85803916,153.37,153.36,26.0]
[1748871968028,6.52017995,153.37,153.31,30.44964886]
[1748871968230,38.33785921,153.35,153.32,42.38]
[1748871968430,6.5197905,153.38,153.25,6.2187]
[1748871968431,38.33785921,153.33,153.25,6.2187]
[1748871968643,38.33785921,153.32,153.27,38.33785921]
[1748871968841,38.33785921,153.31,153.3,26.0]
[1748871969024,38.33785921,153.31,153.28,42.38]
[1748871969227,3.72707962,153.35,153.28,26.0]
[1748871969228,38.33785921,153.29,153.28,26.0]
[1748871969423,38.33785921,153.31,153.28,26.0]
[1748871969625,38.33785921,153.31,153.28,32.52384019]
[1748871969829,38.33785921,153.31,153.28,26.0]
[1748871970129,38.33785921,153.32,153.29,26.0]
[1748871970327,38.33785921,153.31,153.3,26.0]
[1748871971734,38.33785921,153.32,153.3,26.0]
[1748871972534,38.33785921,153.32,153.3,32.52306173]
[1748871972848,3.72707962,153.37,153.34,26.0]
[1748871973044,5.2384963,153.39,153.35,38.33785921]
[1748871973244,5.2384963,153.39,153.36,38.33785921]
[1748871973848,5.2384963,153.39,153.37,6.52017995]
[1748871974045,5.2384963,153.39,153.35,6.52103032]
[1748871974355,38.33785921,153.38,153.35,6.52103032]
[1748871974554,38.33785921,153.37,153.34,68.38]
[1748871974757,38.33785921,153.37,153.34,74.90142132]
[1748871975050,3.7039963,153.39,153.35,38.33785921]
[1748871975352,42.04185551,153.39,153.34,113.23928053]
[1748871975726,42.04185551,153.39,153.34,74.90142132]
[1748871976234,42.04185551,153.39,153.35,38.33785921]
[1748871977451,42.04185551,153.39,153.34,74.90142132]
[1748871977749,38.33785921,153.38,153.34,113.23928053]
[1748871978133,38.33785921,153.37,153.34,32.52142132]
[1748871978360,38.33785921,153.37,153.36,26.0]
[1748871979455,38.33785921,153.37,153.34,68.38]
[1748871979651,38.33785921,153.36,153.34,74.90139841]
[1748871979855,38.33785921,153.35,153.32,11.8]
[1748871980050,38.33785921,153.33,153.32,11.8]
[1748871980255,38.33785921,153.33,153.29,6.52342859]
[1748871980438,6.147,153.35,153.29,6.52342859]
[1748871980439,38.33785921,153.31,153.29,48.90342859]
[1748871980756,38.33785921,153.31,153.27,18.32412871]
[1748871980952,38.33785921,153.29,153.27,54.16]
[1748871981159,38.33785921,153.29,153.28,26.0]
[1748871981534,38.33785921,153.33,153.28,70.86182339]
[1748871981735,38.33785921,153.33,153.29,80.69785921]
[1748871981942,3.72690067,153.36,153.32,64.33785921]
[1748871982163,3.7039963,153.39,153.38,26.0]
[1748871982441,3.7039963,153.39,153.38,64.33785921]
[1748871983440,3.7039963,153.39,153.38,70.85761406]
[1748871984463,3.7039963,153.39,153.38,89.50726292]
[1748871984652,3.7039963,153.39,153.38,32.51975485]
[1748871984976,3.7039963,153.39,153.38,70.85761406]
[1748871985751,3.7039963,153.39,153.38,32.51975485]
[1748871985965,3.7039963,153.39,153.36,26.0]
[1748871986177,3.7039963,153.39,153.37,42.36]
[1748871986465,3.7039963,153.39,153.37,80.69785921]
[1748871987847,3.7039963,153.39,153.37,87.21776283]
[1748871989866,3.7039963,153.39,153.38,44.85761406]
[1748871991682,3.7039963,153.39,153.38,6.51975485]
[1748871991852,3.7039963,153.39,153.38,44.85761406]
[1748871992349,3.7039963,153.39,153.38,63.50726292]
[1748871992550,3.72615363,153.48,153.41,26.0]
[1748871992750,3.72615363,153.48,153.38,86.35765006]
[1748871992751,3.70038055,153.49,153.47,38.33785921]
[1748871994675,42.03823976,153.49,153.46,42.36]
[1748871994854,38.33785921,153.48,153.46,42.36]
[1748871995054,3.70038055,153.49,153.45,70.8543523]
[1748871995055,42.03823976,153.49,153.45,70.8543523]
[1748871995365,48.55334107,153.49,153.45,26.0]
[1748871995565,44.54245921,153.46,153.35,42.34]
[1748871995769,38.33785921,153.43,153.41,26.0]
[1748871995959,1.6593,153.45,153.42,64.33785921]
[1748871996163,44.54245921,153.46,153.42,64.33785921]
[1748871996372,44.54245921,153.46,153.42,26.0]
[1748871996678,38.33785921,153.46,153.42,64.33785921]
[1748871996879,38.33785921,153.48,153.44,38.33785921]
[1748871997098,50.21264107,153.49,153.44,38.33785921]
[1748871997679,38.33785921,153.45,153.42,26.0]
[1748871998366,38.33785921,153.44,153.42,26.0]
[1748871998958,38.33785921,153.43,153.42,26.0]
[1748871999180,38.33785921,153.44,153.42,26.0]
[1748871999375,6.5172947,153.44,153.42,26.0]
[1748871999572,44.85515391,153.44,153.42,26.0]
[1748871999899,6.5172947,153.44,153.42,26.0]
[1748872000189,44.85515391,153.44,153.42,26.0]
[1748872000488,38.33785921,153.44,153.42,26.0]
[1748872000981,38.33785921,153.47,153.43,38.33785921]
[1748872001274,44.85383813,153.47,153.43,38.33785921]
[1748872001816,6.51562455,153.48,153.43,38.33785921]
[1748872001971,38.33785921,153.47,153.43,38.33785921]
[1748872003384,6.51562455,153.48,153.43,38.33785921]
[1748872003587,38.33785921,153.47,153.43,38.33785921]
[1748872004081,38.33785921,153.47,153.42,106.67785921]
[1748872004271,38.33785921,153.45,153.44,26.0]
[1748872004662,38.33785921,153.46,153.44,26.0]
[1748872005265,9.07836491,153.49,153.44,32.51709562]
[1748872005266,15.5935337,153.49,153.44,32.51709562]
[1748872005469,50.21270855,153.49,153.45,26.0]
[1748872005674,5.35968055,153.49,153.45,26.0]
[1748872005894,43.69753976,153.49,153.45,68.32]
[1748872006091,38.33785921,153.46,153.45,68.32]
[1748872006299,38.33785921,153.46,153.4,54.1]
[1748872006468,11.8749335,153.49,153.4,54.1]
[1748872006469,38.33785921,153.44,153.43,26.0]
[1748872006813,38.33785921,153.44,153.41,26.0]
[1748872007094,38.33785921,153.42,153.36,11.78]
[1748872007308,38.33785921,153.39,153.36,54.1]
[1748872007474,6.1649,153.43,153.33,18.64964886]
[1748872007475,6.51805501,153.42,153.33,18.64964886]
[1748872007681,38.33785921,153.39,153.35,38.33785921]
[1748872007989,38.33785921,153.39,153.38,26.0]
[1748872008193,38.33785921,153.39,153.35,38.33785921]
[1748872008194,38.33785921,153.39,153.35,80.65785921]
[1748872008398,38.33785921,153.4,153.38,26.0]
[1748872008589,39.90745921,153.41,153.38,26.0]
[1748872008778,38.33785921,153.41,153.38,32.51973266]
[1748872008978,6.51730929,153.44,153.39,42.32]
[1748872009188,38.33785921,153.42,153.39,42.32]
[1748872009593,38.33785921,153.41,153.39,42.32]
[1748872009989,38.33785921,153.42,153.39,42.32]
[1748872010178,38.33785921,153.41,153.39,42.32]
[1748872011480,44.85648185,153.41,153.39,42.32]
[1748872011682,38.33785921,153.4,153.37,26.0]
[1748872011886,38.33785921,153.38,153.33,44.85974012]
[1748872012101,38.33785921,153.36,153.32,56.64012228]
[1748872012309,38.33785921,153.36,153.33,42.32]
[1748872012612,38.33785921,153.38,153.36,26.0]
[1748872013899,38.33785921,153.37,153.36,26.0]
[1748872014479,38.33785921,153.37,153.32,11.78]
[1748872014685,6.51988567,153.38,153.35,26.0]
[1748872014686,6.52061388,153.36,153.35,26.0]
[1748872014992,44.85847309,153.36,153.32,11.78]
[1748872015215,38.33785921,153.33,153.32,11.78]
[1748872015697,38.33785921,153.33,153.22,0.93067851]
[1748872015903,38.33785921,153.28,153.22,12.71067851]
[1748872016082,38.33785921,153.26,153.22,12.71067851]
[1748872016283,38.33785921,153.26,153.22,11.78]
[1748872016482,38.33785921,153.25,153.24,26.0]
[1748872017787,38.33785921,153.26,153.25,26.0]
[1748872018612,6.52528548,153.25,153.19,0.4821955]
[1748872018791,38.33785921,153.23,153.19,42.8221955]
[1748872019103,38.33785921,153.23,153.19,81.16005471]
[1748872019414,38.33785921,153.23,153.19,42.8221955]
[1748872019719,38.33785921,153.23,153.22,26.0]
[1748872020418,38.33785921,153.23,153.19,0.4821955]
[1748872020586,38.33785921,153.2,153.19,0.4821955]
[1748872020790,38.33785921,153.2,153.19,26.4821955]
[1748872021119,38.33785921,153.2,153.19,0.4821955]
[1748872021991,44.86527435,153.2,153.19,0.4821955]
[1748872022694,38.33785921,153.2,153.19,0.4821955]
[1748872022892,44.86527435,153.2,153.19,0.4821955]
[1748872025534,38.33785921,153.2,153.19,0.4821955]
[1748872025742,1.5613,153.25,153.19,0.4821955]
[1748872025941,38.33785921,153.22,153.19,0.4821955]
[1748872026108,38.33785921,153.21,153.19,0.4821955]
[1748872026309,38.33785921,153.2,153.19,0.4821955]
[1748872027609,6.52665563,153.22,153.19,0.4821955]
[1748872028110,38.33785921,153.21,153.19,0.4821955]
[1748872028331,38.33785921,153.2,153.19,0.4821955]
[1748872029336,6.5257113,153.24,153.19,0.4821955]
[1748872029511,38.33785921,153.22,153.19,0.4821955]
[1748872029709,38.33785921,153.21,153.19,0.4821955]
[1748872030320,6.52646241,153.23,153.19,0.4821955]
[1748872030529,38.33785921,153.22,153.19,0.4821955]
[1748872030729,38.33785921,153.2,153.19,0.4821955]
[1748872031312,38.33785921,153.21,153.17,56.66091104]
[1748872031537,1.5613,153.25,153.17,22.85034615]
[1748872031847,38.33785921,153.23,153.17,6.52861213]
[1748872032014,38.33785921,153.24,153.2,38.33785921]
[1748872032216,38.33785921,153.23,153.19,38.33785921]
[1748872032412,38.33785921,153.22,153.18,38.33785921]
[1748872032931,38.33785921,153.23,153.19,38.33785921]
[1748872033432,38.33785921,153.23,153.2,26.0]
[1748872033643,1.6228,153.28,153.2,64.33785921]
[1748872033939,38.33785921,153.24,153.23,26.0]
[1748872034435,1.6228,153.28,153.23,26.0]
[1748872034641,22.35352254,153.31,153.25,38.33785921]
[1748872034842,11.87988474,153.31,153.28,38.33785921]
[1748872035224,11.87988474,153.31,153.27,26.0]
[1748872035225,38.33785921,153.3,153.27,26.0]
[1748872035441,38.33785921,153.29,153.27,26.0]
[1748872035613,38.33785921,153.28,153.27,26.0]
[1748872036244,44.86186756,153.28,153.19,6.52784124]
[1748872036414,38.33785921,153.25,153.24,26.0]
[1748872036620,38.33785921,153.25,153.22,26.0]
[1748872036818,38.33785921,153.23,153.19,11.78]
[1748872037018,38.33785921,153.2,153.16,44.8668787]
[1748872037220,38.33785921,153.2,153.16,87.2268787]
[1748872037448,6.5794,153.26,153.19,26.0]
[1748872037739,38.33785921,153.23,153.19,64.33785921]
[1748872038048,38.33785921,153.22,153.19,26.0]
[1748872038215,38.33785921,153.22,153.19,32.52749651]
[1748872038544,38.33785921,153.22,153.19,26.0]
[1748872038750,38.33785921,153.21,153.19,26.0]
[1748872038917,13.104274,153.26,153.19,70.86567141]
[1748872039118,17.95289868,153.29,153.21,38.33785921]
[1748872039438,38.33785921,153.25,153.21,38.33785921]
[1748872039946,17.95289868,153.29,153.23,26.0]
[1748872039947,38.33785921,153.27,153.23,26.0]
[1748872040309,38.33785921,153.26,153.23,26.0]
[1748872040811,38.33785921,153.26,153.23,32.52610848]
[1748872041017,38.33785921,153.26,153.23,26.0]
[1748872041214,6.52418898,153.28,153.24,26.0]
[1748872041520,38.33785921,153.25,153.24,26.0]
[1748872041821,38.33785921,153.25,153.17,80.69785921]
[1748872042128,38.33785921,153.23,153.19,38.33785921]
[1748872042334,38.33785921,153.23,153.2,6.52741514]
[1748872042540,6.52482014,153.27,153.2,44.86527435]
[1748872042724,38.33785921,153.26,153.22,38.33785921]
[1748872042917,6.5231572,153.3,153.23,38.33785921]
[1748872043115,38.33785921,153.27,153.23,38.33785921]
[1748872043316,38.33785921,153.26,153.22,64.33785921]
[1748872043539,38.33785921,153.25,153.24,26.0]
[1748872044543,44.86301617,153.26,153.24,26.0]
[1748872044724,38.33785921,153.25,153.21,42.36]
[1748872044933,6.52515696,153.26,153.21,106.69785921]
[1748872045125,44.86301617,153.26,153.21,106.69785921]
[1748872045325,44.86301617,153.26,153.21,68.36]
[1748872045623,44.86301617,153.26,153.21,26.0]